Workbook

Sheet Sheet1
A6: Name | B6: DaysToMaturity | C6: ZCYield | D6: Par rate | F6: Start date | G6: Maturity | H6: Time | I6: Time (360) | J6: Time (365) | K6: Days/days per year | L6: t cpn | M6: Discount factor | N6: Zero rate | O6: Forward rate | Q6: Year | R6: Start date | S6: Maturity | T6: Days | U6: Discount factor | V6: Zero rate | W6: Forward rate
A7: SEKOND | B7: 3 | C7: 2.100041645 | D7: 2.05 | F7: 2011-11-21 | G7: 2011-11-22 | H7: =+B7 -> 3 | I7: =+H7/360 -> 0.008333333333 | J7: =H7/365 -> 0.008219178082 | K7: =B7/365 -> 0.008219178082 | M7: =(1/(1+(D7/100)*I7)) -> 0.9998291958 | N7: =-100*LN(M7)/((G7-$F$7)/365) -> 6.234884119 | Q7: 1Y | R7: 2011-11-23 | S7: 2012-11-23 | T7: 360 | U7: =EXP(-(V7/100)*((S7-$F$7)/365)) -> 0.9779021982 | V7: =ipol(S7,G7:G25,N7:N25,0) -> 2.216345048
A8: STIBORTN | B8: 4 | C8: 2.147957362 | D8: 2.235 | F8: 2011-11-22 | G8: 2011-11-23 | H8: 4 | I8: =+H8/360 -> 0.01111111111 | J8: =H8/365 -> 0.01095890411 | K8: =B8/365 -> 0.01095890411 | L8: =DAYS360(G7,G8,0)/360 -> 0.002777777778 | M8: =(1/(1+(D8/100)*I8)) -> 0.9997517283 | N8: =-100*LN(M8)/((G8-$F$7)/365) -> 4.531520693 | O8: =((((1+N8)^K8)/(1+N7)^K7)^(1/(K8-K7))-1) -> 1.472199005 | Q8: 2Y | R8: 2011-11-23 | S8: 2013-11-23 | T8: 360 | U8: =EXP(-(V8/100)*((S8-$F$7)/365)) -> 0.9630461684 | V8: =ipol(S8,G8:G25,N8:N25,0) -> 1.874990861
A9: STIBOR1W | B9: 11 | C9: 2.28736526 | D9: 2.308 | F9: 2011-11-23 | G9: 2011-11-30 | H9: 11 | I9: =+H9/360 -> 0.03055555556 | J9: 0.0301369863 | K9: =B9/365 -> 0.0301369863 | L9: =DAYS360(G8,G9,0)/360 -> 0.01944444444 | M9: =(1/(1+(D9/100)*I9)) -> 0.9992952748 | N9: =-100*LN(M9)/((G9-$F$7)/365) -> 2.859059883 | O9: =((((1+N9)^K9)/(1+N8)^K8)^(1/(K9-K8))-1) -> 2.141457717 | Q9: 3Y | R9: 2011-11-23 | S9: 2014-11-23 | T9: 360 | U9: =EXP(-(V9/100)*((S9-$F$7)/365)) -> 0.9466264181 | V9: =ipol(S9,G9:G25,N9:N25,0) -> 1.823362935
A10: STIBOR1M | B10: 35 | C10: 2.441351144 | D10: 2.418 | F10: 2011-11-23 | G10: 2011-12-23 | H10: 35 | I10: =+H10/360 -> 0.09722222222 | J10: 0.09589041096 | K10: =B10/365 -> 0.09589041096 | L10: =DAYS360(G9,G10,0)/360 -> 0.06388888889 | M10: =(1/(1+(D10/100)*I10)) -> 0.9976546801 | N10: =-100*LN(M10)/((G10-$F$7)/365) -> 2.678272417 | O10: 2.598266381
A11: STIBOR2M | B11: 66 | C11: 2.575328235 | D11: 2.54 | F11: 2011-11-23 | G11: 2012-01-23 | H11: 66 | I11: 0.1833333333 | J11: 0.1808219178 | K11: =B11/365 -> 0.1808219178 | L11: =DAYS360(G10,G11,0)/360 -> 0.08333333333 | M11: =(1/(1+(D11/100)*I11)) -> 0.9953649174 | N11: 2.691647852 | O11: 2.706807615 | Q11: 11Y | R11: 2011-11-23 | S11: 2022-11-23 | T11: 360 | U11: =EXP(-(V11/100)*((S11-$F$7)/365)) -> 0.7784926539 | V11: =ipol(S11,G15:G32,N15:N32,1) -> 2.273493513
A12: STIBOR3M | B12: 95 | C12: 2.752553073 | D12: 2.713 | F12: 2011-11-23 | G12: 2012-02-23 | H12: 95 | I12: 0.2638888889 | J12: 0.2602739726 | K12: 0.2602739726 | L12: =DAYS360(G11,G12,0)/360 -> 0.08333333333 | M12: =(1/(1+(D12/100)*I12)) -> 0.9928915858 | N12: 2.770039126 | O12: 2.954708186
A13: Stub | B13: =G13-F13 -> 28 | F13: 2011-11-23 | G13: 2011-12-21 | H13: =G13-F13 -> 28 | I13: 0.07777777778 | J13: 0.07671232877 | K13: 0.07671232877 | M13: =EXP(-(N13/100)*(G13-$F$7)/365) -> 0.9977882087 | N13: =(N10-N9)*(G13-G10)/(G10-G9)+N10 -> 2.693993066 | O13: 2.802281562 | Q13: 13Y | R13: 2011-11-23 | S13: 2024-11-23 | T13: 360 | U13: =EXP(-(V13/100)*((S13-$F$7)/365)) -> 0.7401530476 | V13: =ipol(S13,G16:G32,N16:N32,1) -> 2.311679162
A14: SEKFRADEC11 | B14: 103 | C14: 2.738074349 | D14: 2.73 | F14: 2011-12-21 | G14: 2012-03-21 | H14: 91 | I14: 0.2527777778 | J14: 0.2493150685 | K14: 0.2821917808 | L14: =DAYS360(G13,G14,0)/360 -> 0.25 | M14: =(1/(1+(D14/100)*I14)*M13) -> 0.9909498291 | N14: =-100*LN(M14)/((G14-$F$7)/365) -> 2.742438793 | O14: 2.76068763 | Q14: 14Y | R14: 2011-11-23 | S14: 2025-11-23 | T14: 360 | U14: =EXP(-(V14/100)*((S14-$F$7)/365)) -> 0.7213090753 | V14: =ipol(S14,G16:G32,N16:N32,1) -> 2.330745867
A15: SEKFRAMAR12 | B15: 194 | C15: 2.547302759 | D15: 2.28 | F15: 2012-03-21 | G15: 2012-06-20 | H15: 91 | I15: 0.2527777778 | J15: =H15/365 -> 0.2493150685 | K15: 0.5315068493 | L15: =DAYS360(G14,G15,0)/360 -> 0.2472222222 | M15: =(1/(1+(D15/100)*I15)*M14) -> 0.9852713817 | N15: =-100*LN(M15)/((G15-$F$7)/365) -> 2.554683432 | O15: 2.353508434
A16: SEKFRAJUN12 | B16: 285 | C16: 2.326735553 | D16: 1.82 | F16: 2012-06-20 | G16: 2012-09-19 | H16: 91 | I16: 0.2527777778 | J16: 0.2493150685 | K16: 0.7808219178 | L16: 0.2472222222 | M16: =(1/(1+(D16/100)*I16)*M15) -> 0.9807593439 | N16: =-100*LN(M16)/((G16-$F$7)/365) -> 2.340356708 | O16: 1.925601528 | Q16: 16Y | R16: 2011-11-23 | S16: 2027-11-23 | T16: 360 | U16: =EXP(-(V16/100)*((S16-$F$7)/365)) -> 0.6945487742 | V16: =ipol(S16,G17:G34,N17:N34,1) -> 2.275742471
A17: SEKFRASEP12 | B17: 376 | C17: 2.150701112 | D17: 1.57 | F17: 2012-09-19 | G17: 2012-12-19 | H17: 91 | I17: 0.2527777778 | J17: 0.2493150685 | K17: 1.030136986 | L17: 0.25 | M17: =(1/(1+(D17/100)*I17)*M16) -> 0.9768824772 | N17: =-100*LN(M17)/((G17-$F$7)/365) -> 2.166740384 | O17: 1.679258073 | Q17: 17Y | R17: 2011-11-23 | S17: 2028-11-23 | T17: 360 | U17: =EXP(-(V17/100)*((S17-$F$7)/365)) -> 0.6791161871 | V17: =ipol(S17,G17:G34,N17:N34,1) -> 2.273688243
A18: SEKFRADEC12 | B18: 467 | C18: 2.030367219 | D18: 1.505 | F18: 2012-12-19 | G18: 2013-03-20 | H18: 91 | I18: 0.2527777778 | J18: 0.2493150685 | K18: 1.279452055 | L18: 0.2527777778 | M18: =(1/(1+(D18/100)*I18)*M17) -> 0.9731802024 | N18: =-100*LN(M18)/((G18-$F$7)/365) -> 2.045957535 | O18: 1.593834783 | Q18: 18Y | R18: 2011-11-23 | S18: 2029-11-23 | T18: 360 | U18: =EXP(-(V18/100)*((S18-$F$7)/365)) -> 0.6640945203 | V18: =ipol(S18,G17:G34,N17:N34,1) -> 2.271639627
A19: SEKFRAMAR13 | B19: 558 | C19: 1.947682641 | D19: 1.495 | F19: 2013-03-20 | G19: 2013-06-19 | H19: 91 | I19: 0.2527777778 | J19: 0.2493150685 | K19: 1.528767123 | L19: 0.2472222222 | M19: 0.9695163731 | N19: 1.961742958 | O19: 1.564834081 | Q19: 19Y | R19: 2011-11-23 | S19: 2030-11-23 | T19: 360 | U19: =EXP(-(V19/100)*((S19-$F$7)/365)) -> 0.6494317325 | V19: =ipol(S19,G17:G34,N17:N34,1) -> 2.269591011
A20: SEKFRAJUN13 | B20: 649 | C20: 1.891112889 | D20: 1.515 | F20: 2013-06-19 | G20: 2013-09-18 | H20: 91 | I20: 0.2527777778 | J20: 0.2493150685 | K20: 1.778082192 | L20: 0.2472222222 | M20: 0.9658176937 | N20: 1.90326352 | O20: 1.569087612
A21: SEKFRASEP13 | B21: 740 | C21: 1.854169387 | D21: 1.56 | F21: 2013-09-18 | G21: 2013-12-18 | H21: 91 | I21: 0.2527777778 | J21: 0.2493150685 | K21: 2.02739726 | L21: 0.25 | M21: =(1/(1+(D21/100)*I21)*M20) -> 0.962024112 | N21: 1.864281521 | O21: 1.601035285 | Q21: 21Y | R21: 2011-11-23 | S21: 2032-11-23 | T21: 360 | U21: =EXP(-(V21/100)*((S21-$F$7)/365)) -> 0.6211087694 | V21: =ipol(S21,G17:G34,N17:N34,1) -> 2.265488166
A22: SEKFRADEC13 | B22: 831 | C22: 1.832082637 | D22: 1.62 | F22: 2013-12-18 | G22: 2014-03-19 | H22: 91 | I22: 0.2527777778 | J22: 0.2493150685 | K22: 2.276712329 | L22: 0.2527777778 | M22: =(1/(1+(D22/100)*I22)*M21) -> 0.9581006897 | N22: 1.840150402 | O22: 1.65131855 | Q22: 22Y | R22: 2011-11-23 | S22: 2033-11-23 | T22: 360 | U22: =EXP(-(V22/100)*((S22-$F$7)/365)) -> 0.6212187056 | V22: =ipol(S22,G18:G35,N18:N35,1) -> 2.161810249
A23: SEKFRAMAR14 | B23: 922 | C23: 1.820447095 | D23: 1.68 | F23: 2014-03-19 | G23: 2014-06-18 | H23: 91 | I23: 0.2527777778 | J23: 0.2493150685 | K23: 2.526027397 | L23: 0.2472222222 | M23: =(1/(1+(D23/100)*I23)*M22) -> 0.9540491609 | N23: 1.826556202 | O23: 1.705387165 | Q23: 23Y | R23: 2011-11-23 | S23: 2034-11-23 | T23: 360 | U23: =EXP(-(V23/100)*((S23-$F$7)/365)) -> 0.6102547832 | V23: =ipol(S23,G18:G35,N18:N35,1) -> 2.145254517
A24: SEKFRAJUN14 | B24: 1013 | C24: 1.81736627 | D24: 1.75 | F24: 2014-06-18 | G24: 2014-09-17 | H24: 91 | I24: 0.2527777778 | J24: 0.2493150685 | K24: 2.775342466 | L24: 0.2472222222 | M24: 0.9498474054 | N24: 1.821598994 | O24: 1.77186089 | Q24: 24Y | R24: 2011-11-23 | S24: 2035-11-23 | T24: 360 | U24: =EXP(-(V24/100)*((S24-$F$7)/365)) -> 0.5996828945 | V24: =ipol(S24,G18:G35,N18:N35,1) -> 2.128698785
A25: SEKFRASEP14 | B25: 1104 | C25: 1.821570093 | D25: 1.83 | F25: 2014-09-17 | G25: 2014-12-17 | H25: 91 | I25: 0.2527777778 | J25: 0.2493150685 | K25: 3.024657534 | L25: 0.25 | M25: =(1/(1+(D25/100)*I25)*M24) -> 0.9454738011 | N25: =-100*LN(M25)/((G25-$F$7)/365) -> 1.823994795 | O25: 1.850802295
A26: SEK4YSW | B26: 1466 | C26: 1.861152587 | D26: 1.8625 | F26: 2011-11-23 | G26: 2015-11-23 | H26: =+B26 -> 1466 | I26: 4.072222222 | J26: 4.016438356 | K26: 4.016438356 | L26: 0.9333333333 | M26: =(100*$M$8-D26*(U7+U8+U9))/(100+D26) -> 0.928674093 | N26: 1.846141973 | O26: 1.914763083 | Q26: 26Y | R26: 2011-11-23 | S26: 2037-11-23 | T26: 360 | U26: =EXP(-(V26/100)*((S26-$F$7)/365)) -> 0.570867111 | V26: =ipol(S26,G19:G36,N19:N36,1) -> 2.154106451
A27: SEK5YSW | B27: 1831 | C27: 1.966620228 | D27: 1.965 | F27: 2011-11-23 | G27: 2016-11-23 | H27: =+B27 -> 1831 | I27: 5.086111111 | J27: 5.016438356 | K27: 5.016438356 | L27: 1 | M27: =(100*$M$8-D27*(U7+U8+U9)-D27*M26)/(100+D27*L27) -> 0.9069410463 | N27: =-100*LN(M27)/((G27-$F$7)/365) -> 1.949284187 | O27: 2.402600876 | Q27: 27Y | R27: 2011-11-23 | S27: 2038-11-23 | T27: 360 | U27: =EXP(-(V27/100)*((S27-$F$7)/365)) -> 0.5597297711 | V27: =ipol(S27,G19:G36,N19:N36,1) -> 2.147302561
A28: SEK6YSW | B28: 2196 | C28: 2.084731992 | D28: 2.0775 | F28: 2011-11-23 | G28: 2017-11-23 | H28: 2196 | I28: =+H28/360 -> 6.1 | J28: 6.016438356 | K28: 6.016438356 | L28: 1 | M28: =(100*$M$8-D28*(U7+U8+U9)-M26*D28-M27*L27*L28)/(100+D28*L28) -> 0.8928507726 | N28: =-100*LN(M28)/((G28-$F$7)/365) -> 1.885486522 | O28: 1.585681718 | Q28: 28Y | R28: 2011-11-23 | S28: 2039-11-23 | T28: 360 | U28: =EXP(-(V28/100)*((S28-$F$7)/365)) -> 0.5436723173 | V28: =ipol(S28,G20:G37,N19:N36,1) -> 2.174544223
A29: SEK7YSW | B29: 2561 | C29: 2.174585613 | D29: 2.1625 | F29: 2011-11-23 | G29: 2018-11-23 | H29: 2561 | I29: 7.113888889 | J29: 7.016438356 | K29: 7.016438356 | L29: 1 | M29: =(100*M8-$D$29*(U7+U8+U9)-$D$29*(M26+M27*L27+M28*L28))/(100+$D$29*L29) -> 0.8597135429 | N29: =-100*LN(M29)/((G29-$F$7)/365) -> 2.15599659 | O29: =((((1+N29)^K29)/(1+N28)^K28)^(1/(K29-K28))-1) -> 4.411044623 | Q29: 29Y | R29: 2011-11-23 | S29: 2040-11-23 | T29: 360 | U29: =EXP(-(V29/100)*((S29-$F$7)/365)) -> 0.5330009339 | V29: =ipol(S29,G20:G37,N19:N36,1) -> 2.167717956
A30: SEK8YSW | B30: 2926 | C30: 2.232792552 | D30: 2.2175 | F30: 2011-11-23 | G30: 2019-11-23 | H30: 2926 | I30: 8.127777778 | J30: 8.016438356 | K30: 8.016438356 | L30: 1 | M30: =(100*$M$8-D30*(U7+U8+U9)-D30*(M26+L27*M27+M28*L28+M29*L29))/(100+$D$29*L30) -> 0.8380294903 | N30: =-100*LN(M30)/((G30-$F$7)/365) -> 2.205753268 | O30: 2.577640903
A31: SEK9YSW | B31: 3293 | C31: 2.26618812 | D31: 2.25 | F31: 2011-11-23 | G31: 2020-11-23 | H31: 3293 | I31: 9.147222222 | J31: 9.021917808 | K31: 9.021917808 | L31: 1 | M31: =(100*$M$8-D31*(U7+U8+U9)-D31*(M26+L27*M27+L28*M28+M29*L29+M30*L30))/(100+$D$29*L31) -> 0.8175128784 | N31: =-100*LN(M31)/((G31-$F$7)/365) -> 2.235360102 | O31: 2.481401348
A32: SEK10YSW | B32: 3657 | C32: 2.286890934 | D32: 2.27 | F32: 2011-11-23 | G32: 2021-11-23 | H32: 3657 | I32: 10.15833333 | J32: 10.01917808 | K32: 10.01917808 | L32: 1 | M32: =(100*$M$8-D32*(U7+U8+U9)-D32*(M26+L27*M27+L28*M28+L29*M29+M30*L30+M31*L31))/(100+$D$29*L32) -> 0.7979163542 | N32: 2.254426808 | O32: 2.432105569
A33: SEK12YSW | B33: 4387 | C33: 2.318044208 | D33: 2.3 | F33: 2011-11-23 | G33: 2023-11-23 | H33: 4387 | I33: 12.18611111 | J33: 12.01917808 | K33: 12.01917808 | L33: =DAYS360(G32,G33,0)/360/2 -> 1 | M33: =(100*$M$8-D33*(U7+U8+U9+U11)-D33*(M26+L27*M27+L28*M28+L29*M29+L30*M30+M31*L31+M32*L32))/(100+$D$29*L33) -> 0.7600386631 | N33: =-100*LN(M33)/((G33-$F$7)/365) -> 2.283942548 | O33: 2.435882938
A34: SEK15YSW | B34: 5484 | C34: 2.311089927 | D34: 2.2975 | F34: 2011-11-23 | G34: 2026-11-23 | H34: 5484 | I34: 15.23333333 | J34: 15.02465753 | K34: 15.02465753 | L34: =DAYS360(G33,G34,0)/360/3 -> 1 | M34: =(100*$M$8-D34*($U$7+$U$8+$U$9+$U$11+$U$13+$U$14)-D34*(M26+L27*M27+L28*M28+L29*M29+L30*M30+L31*M31+M32*L32+M33*L33))/(100+$D$29*L34) -> 0.7103175933 | N34: =-100*LN(M34)/((G34-$F$7)/365) -> 2.277791087 | O34: 2.253305819
A35: SEK20YSW | B35: 7311 | C35: 2.223428494 | D35: 2.2275 | F35: 2011-11-23 | G35: 2031-11-23 | H35: 7311 | I35: 20.30833333 | J35: 20.03013699 | K35: 20.03013699 | L35: =DAYS360(G34,G35,0)/360/5 -> 1 | M35: =(100*$M$8-D35*($U$7+$U$8+$U$9+$U$11+$U$13+$U$14+$U$16+$U$17+$U$18+$U$19)-D35*(M26+L27*M27+L28*M28+L29*M29+L30*M30+L31*M31+L32*M32+M33*L33+M34*L34))/(100+$D$29*L35) -> 0.6444137007 | N35: =-100*LN(M35)/((G35-$F$7)/365) -> 2.19496707 | O35: 1.958717391
A36: SEK25YSW | B36: 9138 | C36: 2.186003534 | D36: 2.1975 | F36: 2011-11-23 | G36: 2036-11-23 | H36: 9138 | I36: 25.38333333 | J36: 25.03561644 | K36: 25.03561644 | L36: =DAYS360(G35,G36,0)/360/5 -> 1 | M36: =(100*$M$8-D36*($U$7+$U$8+$U$9+$U$11+$U$13+$U$14+$U$16+$U$17+$U$18+$U$19+$U$21+$U$22+$U$23+$U$24)-D36*(M26+L27*M27+L28*M28+L29*M29+L30*M30+L31*M31+L32*M32+L33*M33+M34*L34+M35*L35))/(100+$D$29*L36) -> 0.5823052918 | N36: =-100*LN(M36)/((G36-$F$7)/365) -> 2.160910341 | O36: 2.028221916
A37: SEK30YSW | B37: 10962 | C37: 2.141425712 | D37: 2.1625 | F37: 2011-11-23 | G37: 2041-11-23 | H37: =+B37 -> 10962 | I37: 30.45 | J37: 30.03287671 | K37: 30.03287671 | L37: =DAYS360(G36,G37,0)/360/5 -> 1 | M37: =(100*$M$8-D37*($U$7+$U$8+$U$9+$U$11+$U$13+$U$14+$U$16+$U$17+$U$18+$U$19+$U$21+$U$22+$U$23+$U$24+$U$26+$U$27+$U$28+$U$29)-D37*(M26+L27*M27+L28*M28+L29*M29+L30*M30+L31*M31+L32*M32+L33*M33+L34*M34+M35*L35+M36*L36))/(100+$D$29*L37) -> 0.5295693265 | N37: =-100*LN(M37)/((G37-$F$7)/365) -> 2.117037281 | O37: 1.906238089

Sheet Sheet2

Sheet Sheet3
